bitfinex-derivatives/quotes_ETHF0:USTF0_20251013
["timestamp","ask_amount","ask_price","bid_price","bid_amount"]
[1760336182236,0.3262,4144.8,4144.2,0.2177]
[1760336182437,0.5425,4145.2,4145.1,0.2177]
[1760336182638,0.5425,4145.2,4145.1,0.7726]
[1760336182834,0.2163,4145.2,4145.1,0.7726]
[1760336183332,0.76009,4145.6,4145.2,0.43392]
[1760336183537,0.7645,4145.6,4145.5,0.5527]
[1760336184547,0.2163,4145.6,4145.5,0.8976]
[1760336185038,0.32800701,4146.0,4145.6,0.335]
[1760336185243,1.20014701,4146.0,4145.9,0.5527]
[1760336185836,1.20014701,4146.0,4145.9,0.2177]
[1760336186138,0.65018,4145.7,4145.6,0.7726]
[1760336187341,0.43386,4145.9,4145.6,0.7726]
[1760336187547,0.43386,4145.9,4145.8,0.7726]
[1760336188044,0.00180701,4146.0,4145.8,0.7726]
[1760336188239,0.00180701,4146.0,4145.9,0.7726]
[1760336188648,0.21810701,4146.0,4145.9,0.7726]
[1760336188942,0.21810701,4146.0,4145.8,0.335]
[1760336188943,0.7645,4145.9,4145.8,0.335]
[1760336189143,1.19836,4145.9,4145.8,0.5527]
[1760336189345,0.7645,4145.9,4145.8,0.5527]
[1760336190943,0.7645,4145.9,4145.8,0.7726]
[1760336191550,0.7645,4145.9,4145.8,0.2177]
[1760336191743,0.7645,4145.4,4145.2,4.83314381]
[1760336191943,0.7645,4145.4,4145.3,0.7726]
[1760336192147,0.43388,4145.7,4145.3,0.7726]
[1760336192348,0.76630701,4146.0,4145.9,0.7726]
[1760336192643,0.44010701,4146.0,4145.9,0.7726]
[1760336192850,0.00180701,4146.0,4145.9,0.7726]
[1760336193046,0.2163,4146.9,4146.8,0.7726]
[1760336193351,0.5425,4146.9,4146.8,0.7726]
[1760336193651,0.7645,4146.9,4146.8,0.7726]
[1760336194042,0.76711647,4146.9,4146.8,0.77542324]
[1760336194448,0.76711647,4146.9,4146.8,0.00282324]
[1760336197453,0.76711647,4146.9,4146.8,0.22052324]
[1760336197849,0.00261647,4146.9,4146.8,0.77542324]
[1760336198545,0.5425,4148.0,4147.9,0.2177]
[1760336198748,0.7645,4148.0,4147.9,0.5527]
[1760336198944,1.32364,4148.0,4147.6,0.43367]
[1760336199146,0.2163,4147.7,4147.6,0.98637]
[1760336199351,0.7645,4147.7,4147.6,0.5527]
[1760336199553,0.76679935,4147.7,4147.6,0.5527]
[1760336200452,0.4383,4147.3,4147.2,0.98642]
[1760336200654,0.43374,4147.1,4146.9,3.2078]
[1760336200866,0.43596935,4147.7,4146.9,4.41415]
[1760336201055,1.20046935,4147.7,4147.6,0.5527]
[1760336201353,0.76679935,4147.7,4147.6,0.7726]
[1760336201556,0.76679935,4147.7,4147.6,0.2177]
[1760336201758,0.76679935,4147.7,4147.6,0.5527]
[1760336202057,0.76679935,4147.7,4147.6,0.7726]
[1760336203555,0.43371,4147.3,4147.2,0.335]
[1760336203857,0.7645,4146.9,4146.8,0.00282324]
[1760336204058,0.7645,4146.9,4146.8,0.55552324]
[1760336204458,0.7645,4146.9,4146.8,0.00282324]
[1760336206859,7.05295891,4146.9,4146.8,0.00282324]
[1760336207361,1.51817,4146.8,4146.0,3.2078]
[1760336207658,0.766,4146.1,4146.0,3.2078]
[1760336208060,3.2078,4146.9,4146.0,3.2078]
[1760336208061,0.766,4147.2,4146.6,0.3386]
[1760336208263,0.5457,4147.0,4146.9,0.5575]
[1760336208460,0.5457,4147.0,4146.9,0.5598872]
[1760336209463,0.766,4147.0,4146.9,0.5598872]
[1760336209664,0.766,4147.0,4146.9,0.2212872]
[1760336211864,0.766,4147.0,4146.9,0.5598872]
[1760336213267,0.766,4147.0,4146.9,0.2212872]
[1760336213973,0.904,4147.0,4146.9,0.0023872]
[1760336214364,8.92126674,4147.0,4146.9,0.0023872]
[1760336214566,0.766,4146.3,4145.9,1.28299434]
[1760336214766,0.87835,4145.9,4145.7,4.49079434]
[1760336215067,0.766,4145.8,4145.7,3.2078]
[1760336215575,0.766,4145.8,4145.7,3.21085005]
[1760336215875,0.766,4145.8,4145.7,0.00305005]
[1760336216867,3.91807995,4145.8,4145.7,0.00305005]
[1760336217072,0.766,4145.3,4145.2,3.2078]
[1760336217471,0.43386,4145.9,4145.2,3.992]
[1760336217772,0.4595,4146.0,4145.9,0.7842]
[1760336217773,0.2242,4146.0,4145.9,0.7842]
[1760336217967,0.2242,4146.0,4145.9,0.78725237]
[1760336218167,0.5457,4146.0,4145.9,0.78725237]
[1760336218471,0.766,4146.0,4145.9,0.78725237]
[1760336218976,0.4445,4146.0,4145.9,0.78725237]
[1760336219268,0.75532,4146.3,4145.9,0.43690237]
[1760336219772,0.3215,4146.2,4145.9,0.43690237]
[1760336219968,0.43382,4146.3,4145.9,0.43690237]
[1760336220175,0.3215,4146.1,4146.0,0.3386]
[1760336220662,3.2078,4146.7,4146.4,0.4338]
[1760336220863,0.57174,4147.0,4146.5,0.43379]
[1760336221068,0.57174,4147.0,4146.6,0.3386]
[1760336221275,3.2078,4147.2,4146.5,0.43379]
[1760336221276,3.5293,4147.2,4147.0,0.3386]
[1760336221584,3.2078,4147.2,4146.8,0.3386]
[1760336221868,3.2078,4147.2,4146.5,1.41479434]
[1760336221869,3.2078,4147.2,4146.5,0.56559]
[1760336222075,0.3215,4146.9,4146.7,0.3386]
[1760336222372,0.43375,4147.0,4146.7,0.3386]
[1760336222573,0.3215,4146.8,4146.7,0.3386]
[1760336222765,0.3215,4147.0,4146.8,0.3386]
[1760336222962,0.3215,4147.1,4146.6,0.43378]
[1760336223166,0.3215,4146.9,4146.7,0.3386]
[1760336223363,0.138,4146.5,4146.4,1.28299434]
[1760336223571,0.43381,4146.4,4146.2,3.2078]
[1760336223776,0.3215,4146.3,4146.2,3.2078]
[1760336223976,0.4595,4146.0,4145.9,0.00305237]
[1760336224275,0.89334,4146.0,4145.9,0.00305237]
[1760336225468,8.942536,4146.0,4145.9,0.00305237]
[1760336225669,4.05113039,4146.0,4145.9,0.00305237]
[1760336226064,3.96299,4147.5,4146.9,0.3386]
[1760336226264,0.5540619,4147.4,4146.6,0.3386]
[1760336226476,0.3215,4147.4,4147.1,3.2078]
[1760336226670,0.3215,4147.3,4147.1,3.2078]
[1760336226974,0.57169,4147.5,4147.1,3.2078]
[1760336227369,0.3215,4147.4,4147.1,3.2078]
[1760336227569,0.3215,4147.3,4147.1,3.2078]
[1760336227769,0.3215,4147.4,4147.1,3.2078]
[1760336228175,0.57169,4147.5,4147.1,3.64152]
[1760336228570,0.3215,4147.4,4147.1,3.64152]
[1760336228980,0.00229935,4147.7,4147.5,0.1318]
[1760336229174,0.32379935,4147.7,4147.5,0.3386]
[1760336229376,0.32379935,4147.7,4147.6,0.3386]
[1760336229575,0.00229935,4147.7,4147.6,0.3386]
[1760336230174,0.00229935,4147.7,4147.6,3.5464]
[1760336232876,0.32379935,4147.7,4147.6,3.5464]
[1760336234280,0.54799935,4147.7,4147.6,3.5464]
[1760336234484,0.54799935,4147.7,4147.6,3.7653]
[1760336234782,0.54799935,4147.7,4147.6,3.992]
[1760336235277,0.2242,4148.2,4148.1,0.4456]
[1760336235478,0.3215,4148.6,4148.5,0.4456]
[1760336235680,3.91050235,4148.6,4148.5,0.7842]
[1760336236281,3.91284317,4148.6,4148.5,0.5575]
[1760336236482,3.91284317,4148.6,4148.5,0.7842]
[1760336236682,0.76834082,4148.6,4148.5,0.7842]
[1760336236878,0.7572,4148.2,4148.1,3.2078]
[1760336237483,1.19081,4148.2,4148.1,3.2078]
[1760336237889,0.7572,4148.2,4148.1,3.2078]
[1760336238083,0.7572,4148.2,4148.1,3.7669]
[1760336238289,0.4274,4148.2,4148.1,3.9815]
[1760336238486,0.2139,4148.2,4148.1,3.9815]
[1760336239782,0.7572,4148.2,4148.1,3.4308]
[1760336239991,0.7572,4148.2,4148.1,3.2078]
[1760336240188,0.2139,4148.2,4148.1,3.9815]
[1760336240690,0.75954082,4148.6,4148.5,0.223]
[1760336240881,0.75954082,4148.6,4148.5,0.5591]
[1760336241086,0.42974082,4148.6,4148.2,0.43361]
[1760336241291,1.26985446,4150.3,4148.5,0.57088]
[1760336241292,3.2078,4149.2,4148.5,0.57088]
[1760336241492,0.3298,4149.8,4149.2,0.3361]
[1760336241991,0.43347,4149.7,4149.2,0.3361]
[1760336242188,0.43344,4149.9,4149.1,3.2078]
[1760336242387,0.00196052,4149.9,4149.2,0.3361]
[1760336242582,3.12198222,4149.8,4149.4,0.43348]
[1760336242788,0.3298,4149.8,4149.5,0.3361]
[1760336242983,0.3298,4149.7,4149.5,0.3361]
[1760336243188,0.43540052,4149.9,4149.5,0.3361]
[1760336243387,0.3298,4149.8,4149.5,0.3361]
[1760336243588,0.33176052,4149.9,4149.7,3.2078]
[1760336243792,0.33176052,4149.9,4149.7,3.5439]
[1760336243994,0.3298,4149.8,4149.7,3.5439]
[1760336244387,0.3298,4149.8,4149.1,0.00229464]
[1760336244388,0.3298,4149.7,4149.2,3.2078]
[1760336244696,0.4274,4149.8,4149.1,0.00229464]
[1760336244697,0.76331,4149.2,4149.1,0.00229464]
[1760336244987,3.85236497,4149.2,4149.1,0.00229464]
[1760336245595,0.3298,4149.2,4149.1,0.00229464]
[1760336247196,0.3298,4149.2,4148.2,3.2078]
[1760336247197,0.1375,4148.5,4148.2,3.2078]
[1760336247505,0.3298,4148.3,4148.2,3.2078]
[1760336248000,0.3298,4148.2,4147.7,3.2078]
[1760336248193,3.56379422,4148.3,4147.7,3.64387714]
[1760336248592,0.43361,4148.3,4147.8,0.43365]
[1760336248794,0.3298,4148.2,4148.0,0.3361]
[1760336249000,0.43363,4148.1,4147.9,0.3361]
[1760336249302,0.1375,4148.5,4147.7,3.54631714]
[1760336249303,0.3298,4147.8,4147.7,3.54631714]
[1760336249504,0.43363,4148.1,4147.8,0.3361]
[1760336249698,0.3298,4148.0,4147.8,0.3361]
[1760336249898,0.3298,4147.9,4147.8,0.3361]
[1760336250604,0.3298,4148.1,4147.8,0.3361]
[1760336251098,0.4336,4148.4,4147.9,0.76974]
[1760336251305,0.43361,4148.3,4147.9,0.76974]
[1760336251602,0.3298,4148.1,4147.9,0.76974]
[1760336251804,0.3298,4148.1,4147.9,0.43364]
[1760336252004,0.3298,4148.1,4148.0,0.3361]
[1760336252497,0.3298,4148.4,4147.7,3.97997714]
[1760336252704,0.3298,4148.4,4147.7,3.21021714]
[1760336252705,0.3298,4147.8,4147.7,3.21021714]
[1760336253695,0.3298,4147.8,4147.7,0.00241714]
[1760336254804,3.86249848,4147.8,4147.7,0.00241714]
[1760336256808,4.28989848,4147.8,4147.7,0.00241714]
[1760336257805,4.28989848,4147.8,4146.7,3.2078]
[1760336258009,4.28989848,4147.8,4146.1,1.72514712]
[1760336258010,0.1375,4146.5,4146.2,1.28299434]
[1760336258303,0.1375,4146.5,4146.1,3.64163]
[1760336258506,0.3298,4146.4,4146.1,3.2078]
[1760336258704,0.3298,4146.3,4146.1,3.2078]
[1760336258901,0.3298,4146.2,4146.1,3.54582554]
[1760336259103,0.00276192,4146.3,4146.1,3.54582554]
[1760336259304,0.00276192,4146.3,4146.2,0.76992]
[1760336261403,0.33256192,4146.3,4146.1,3.20972554]
[1760336261608,0.3298,4146.2,4146.1,3.54582554]
[1760336262107,0.00276192,4146.3,4146.2,0.76992]
[1760336262509,0.3298,4146.2,4146.1,3.20972554]
[1760336264207,0.00276192,4146.3,4146.2,0.3361]
[1760336264514,0.00276192,4146.3,4146.2,0.7737]
[1760336267011,0.2237,4147.0,4146.9,1.21785]
[1760336268120,0.22591457,4147.0,4146.9,1.21785]
[1760336268413,0.00221457,4147.0,4146.9,1.21785]
[1760336268614,0.21731457,4147.0,4146.9,1.21785]
[1760336268808,0.43211457,4147.0,4146.9,1.21785]
[1760336269016,0.76391457,4147.0,4146.9,1.21785]
[1760336269211,0.00221457,4147.0,4146.9,1.21785]
[1760336269815,0.00221457,4147.0,4146.8,3.2078]
[1760336269816,0.76391457,4147.0,4146.8,3.2078]
[1760336270010,0.3318,4146.9,4146.8,3.2078]
[1760336270211,0.7617,4146.9,4146.8,3.2078]
[1760336270812,0.7617,4146.9,4146.8,3.4323]
[1760336271713,0.7617,4146.9,4146.8,3.7657]
[1760336272118,0.7617,4146.9,4146.8,3.2078]
[1760336275315,0.7617,4146.3,4146.2,3.2078]
[1760336275818,0.7617,4146.3,4146.1,0.00192554]
[1760336277023,1.19552,4146.3,4146.1,0.00192554]
[1760336278518,0.7617,4146.3,4146.1,0.00192554]
[1760336280019,0.7617,4146.3,4146.2,0.5579]
[1760336280719,0.7617,4146.2,4146.1,0.00192554]
[1760336281127,3.91008617,4146.2,4146.1,0.00192554]
[1760336288925,4.46307479,4146.2,4146.1,0.00192554]
[1760336290531,3.91008617,4146.2,4146.1,0.00192554]
[1760336291323,4.46279729,4146.2,4146.1,0.00192554]
[1760336291524,7.12423505,4146.2,4146.1,0.00192554]
[1760336291926,7.12423505,4146.2,4145.2,3.2078]
[1760336291927,0.7617,4145.3,4145.2,3.2078]
[1760336292932,0.7617,4145.3,4145.2,3.20997035]
[1760336293927,2.09241888,4145.3,4145.2,3.20997035]
[1760336296535,2.09241888,4145.3,4145.2,0.00217035]
[1760336297029,5.23342509,4145.3,4145.2,0.00217035]
[1760336297235,5.23342509,4145.3,4144.3,3.2078]
[1760336297236,0.7773,4144.4,4144.3,3.2078]
[1760336297424,2.10801888,4144.4,4144.3,3.2078]
[1760336297734,2.10801888,4144.4,4144.3,3.4326]
[1760336298138,2.10801888,4144.4,4144.3,3.43527927]
[1760336298535,2.10801888,4144.4,4144.3,3.21047927]
[1760336298830,5.30690111,4144.4,4144.3,3.21047927]
[1760336299533,5.30690111,4144.4,4144.3,0.00267927]
[1760336299732,8.51470111,4144.4,4144.3,0.00267927]
[1760336300430,0.3251,4143.9,4143.7,3.2078]
[1760336300631,0.43406,4144.0,4143.7,3.2078]
[1760336300632,2.10801888,4143.8,4143.7,3.2078]
[1760336300830,5.60836965,4143.8,4143.7,3.2078]
[1760336301031,2.54208888,4143.8,4143.7,3.2078]
[1760336301337,0.4522,4143.3,4143.2,3.2078]
[1760336301635,0.78035657,4143.3,4143.2,3.21051385]
[1760336304140,0.78035657,4143.3,4143.2,3.75841385]
[1760336305232,0.00305657,4143.3,4143.2,3.98351385]
[1760336305731,0.23085657,4143.3,4143.2,3.98351385]
[1760336306131,0.00305657,4143.3,4143.2,3.98351385]
[1760336306329,3.2078,4144.9,4144.0,0.1325]
[1760336306533,1.26985446,4145.9,4145.7,0.43388]
[1760336306732,0.3251,4146.9,4146.7,0.43377]
[1760336306942,0.3251,4147.4,4146.2,1.28760876]
[1760336307137,0.3251,4147.4,4147.2,0.43371]
[1760336307434,0.1285,4147.5,4147.4,0.4337]
[1760336307633,0.45656402,4147.5,4147.4,0.4337]
[1760336308136,0.45656402,4147.5,4147.2,3.20988509]
[1760336308137,0.3251,4147.4,4147.2,3.20988509]
[1760336308531,0.3251,4147.4,4147.3,0.43371]
[1760336308929,0.32708458,4147.4,4147.3,0.43371]
[1760336310538,0.00198458,4147.4,4147.3,0.46951]
[1760336310937,0.00198458,4147.4,4147.3,0.43371]
[1760336311440,0.00198458,4147.4,4147.3,0.46951]
[1760336311639,0.3251,4148.6,4147.5,0.0358]
[1760336311840,0.4536,4148.5,4148.4,3.2078]
[1760336312143,0.4536,4149.0,4148.9,0.43354]
[1760336312641,0.45533561,4149.0,4148.9,0.43354]
[1760336313840,0.13023561,4149.0,4148.6,0.43356]
[1760336314048,0.3251,4148.9,4148.6,0.43356]
[1760336314240,0.3251,4148.9,4148.4,3.2078]
[1760336314241,3.2078,4151.0,4148.7,0.0358]
[1760336314541,0.22,4151.3,4151.1,0.0341]
[1760336314741,0.22,4151.3,4150.5,3.2078]
[1760336314742,0.14558961,4151.3,4151.2,3.6411]
[1760336314937,0.14558961,4151.3,4151.2,3.6752]
[1760336315138,0.21130598,4151.3,4151.2,3.6752]
[1760336315540,0.21309919,4151.3,4151.2,3.67771477]
[1760336315744,0.53819919,4151.3,4151.2,3.64361477]
[1760336315941,0.53819919,4151.3,4151.2,3.21031477]
[1760336317947,0.53819919,4151.3,4151.2,0.00251477]
[1760336318142,0.53819919,4151.3,4150.2,3.2078]
[1760336318143,3.62722509,4151.3,4150.2,3.2078]
[1760336318348,0.1285,4150.5,4150.2,3.2078]
[1760336318552,0.3251,4150.4,4150.2,3.2078]
[1760336318747,0.1285,4150.5,4150.2,3.2078]
[1760336319044,0.06571637,4150.4,4150.2,3.2078]
[1760336319255,0.3251,4150.3,4150.2,3.2106652]
[1760336320149,0.39081637,4150.3,4150.2,3.2106652]
[1760336321349,0.06571637,4150.3,4150.2,3.2472652]
[1760336321659,0.4536,4152.5,4152.1,0.4332]
[1760336321840,3.2078,4154.2,4152.3,8.10398963]
[1760336322040,0.1285,4154.5,4153.8,0.43303]
[1760336322041,3.42903046,4154.1,4153.8,0.43303]
[1760336322240,0.3251,4154.9,4153.8,3.2078]
[1760336322440,0.4536,4155.0,4153.6,3.2078]
[1760336322638,0.3251,4155.0,4154.9,3.2078]
[1760336322843,0.00310646,4155.0,4154.9,3.2078]
[1760336323749,0.56125,4156.5,4154.9,3.2078]
[1760336323750,0.1285,4156.5,4154.9,3.2078]
[1760336324049,0.1285,4156.0,4155.4,3.2078]
[1760336324546,0.1374,4155.5,4155.4,3.2078]
[1760336324746,0.48500951,4155.5,4155.4,3.2078]
[1760336325246,0.48500951,4155.5,4154.8,3.2078]
[1760336326750,0.00210951,4155.5,4154.8,3.2078]
[1760336326948,0.00210951,4155.5,4154.8,3.64072]
[1760336327249,0.3319,4155.4,4154.8,3.2078]
[1760336327645,0.3319,4155.4,4153.6,5.98088414]
[1760336327646,0.3319,4154.9,4154.2,3.2078]
[1760336327838,0.3319,4154.9,4153.6,0.43512451]
[1760336327839,0.3319,4154.9,4154.8,3.2078]
[1760336328039,3.67040951,4155.5,4154.8,3.2078]
[1760336328648,3.67040951,4155.5,4154.9,0.43291]
[1760336329451,3.67040951,4155.5,4154.8,3.2078]
[1760336329650,3.33850951,4155.5,4154.8,3.2078]
[1760336329849,0.3319,4155.1,4154.8,3.2078]
[1760336330549,3.20990951,4155.5,4154.8,3.2078]
[1760336330846,3.77136951,4155.5,4154.8,3.2078]
[1760336331052,0.43287,4155.3,4154.8,3.2078]
[1760336331247,0.3319,4155.1,4154.8,3.2078]
[1760336331446,0.43287,4155.3,4154.8,3.2078]
[1760336331447,0.3319,4155.2,4154.8,3.2078]
[1760336331641,0.43287,4155.3,4154.8,3.2078]
[1760336331843,0.3319,4155.2,4154.8,3.2078]
[1760336332048,1.2432,4155.3,4154.8,3.2078]
[1760336332253,0.3319,4155.2,4154.8,3.2078]
[1760336332456,1.2432,4155.3,4154.8,3.2078]
[1760336332754,0.3319,4155.2,4154.8,3.64072]
[1760336332952,1.2432,4155.3,4155.1,0.43288]
[1760336333454,1.2432,4155.3,4155.0,0.4329]
[1760336333956,1.5751,4155.3,4155.0,0.4329]
[1760336334656,1.5751,4155.3,4154.8,3.64072]
[1760336334955,1e-08,4155.0,4154.8,3.2078]
[1760336335148,0.33190001,4155.0,4154.9,5.32910963]
[1760336335350,0.33190001,4155.0,4154.9,0.43292]
[1760336335549,1e-08,4155.0,4154.8,3.64072]
[1760336335955,0.00244109,4155.0,4154.8,3.64072]
[1760336336257,0.3319,4154.9,4154.8,3.64072]
[1760336338653,0.3319,4154.9,4154.8,3.2078]
[1760336338852,0.76482,4154.9,4154.8,2.88207873]
[1760336339158,0.3319,4154.4,4154.3,3.2078]
[1760336340655,0.76487,4154.4,4154.3,3.2078]
[1760336340859,0.3319,4154.4,4154.3,3.2078]
[1760336342067,0.76492,4153.9,4153.8,3.2078]
[1760336343361,0.1286,4153.0,4152.5,3.2078]
[1760336343651,0.3319,4152.9,4152.5,3.2078]
[1760336344059,0.3319,4152.9,4152.8,0.43313]
[1760336344457,0.3319,4152.9,4152.8,0.43501729]
[1760336344757,0.3319,4152.9,4152.8,0.00188729]
[1760336345958,0.76502,4152.9,4152.8,0.00188729]
[1760336347557,0.76502,4152.9,4152.0,3.64101]
[1760336347558,0.3319,4152.9,4152.0,3.2078]
[1760336347756,0.3319,4152.9,4151.0,1.28760876]
[1760336347757,0.3319,4151.9,4151.6,0.43325]
[1760336348059,0.1286,4152.0,4151.6,0.43325]
[1760336348651,0.3319,4151.9,4151.8,0.43324]
[1760336350067,0.3319,4151.9,4151.7,0.43324]
[1760336350559,0.13138054,4152.0,4151.6,0.00193269]
[1760336350763,0.76514,4151.9,4151.6,0.00193269]
[1760336351859,0.3319,4151.7,4151.6,0.00193269]
[1760336354062,0.76515,4151.7,4151.6,0.00193269]
[1760336355560,0.3319,4151.7,4151.6,0.00193269]
[1760336355763,0.76515,4151.7,4151.6,0.00193269]
[1760336357169,0.3319,4151.7,4151.6,0.00193269]
[1760336360270,0.3319,4151.7,4151.6,0.43519269]
[1760336360863,0.3319,4151.7,4151.6,3.64299269]
[1760336361969,0.13138054,4152.0,4151.9,0.43323]
[1760336362668,0.1286,4153.0,4152.4,0.43318]
[1760336362974,0.1286,4153.0,4152.9,0.43312]
[1760336363673,0.13038701,4153.0,4152.9,0.43312]
[1760336363975,0.47148701,4153.0,4152.9,3.64092]
[1760336364177,0.47148701,4153.0,4152.9,3.2078]
[1760336364374,0.4786,4152.5,4152.4,4.48885799]
[1760336364678,0.4786,4152.5,4152.4,3.2078]
[1760336365766,0.4786,4152.5,4152.4,4.05567799]
[1760336366166,0.4786,4152.5,4152.4,3.2078]
[1760336367273,0.4786,4152.5,4152.4,4.49540876]
[1760336367465,0.4786,4152.5,4152.4,3.2078]
[1760336371383,0.4786,4152.5,4152.4,4.93294712]
[1760336371682,0.4786,4152.5,4152.4,3.2078]
[1760336373479,0.1375,4152.5,4152.4,3.2078]
[1760336373982,0.4786,4152.5,4152.4,5.35591999]
[1760336374172,0.13038701,4153.0,4152.9,0.43312]
[1760336374377,0.13038701,4153.0,4152.9,3.64092]
[1760336376181,0.47148701,4153.0,4152.9,3.64092]
[1760336378279,0.47148701,4153.0,4152.9,4.9194749]
[1760336381097,0.47148701,4153.0,4152.9,3.64092]
[1760336381393,0.3411,4152.9,4152.7,0.43314]
[1760336381598,0.3411,4152.9,4152.8,0.85259246]
[1760336382398,0.3411,4152.9,4152.7,0.43314]
[1760336382600,0.77423,4152.9,4152.8,0.85265682]
[1760336382794,0.3411,4152.8,4152.7,0.85265682]
[1760336382997,0.13038701,4153.0,4152.6,1.2785549]
[1760336383296,6.35235031,4152.9,4152.5,0.85268426]
[1760336383494,0.43315,4152.6,4152.5,0.85268426]
[1760336383693,0.77425,4152.6,4152.5,0.85268426]
[1760336384098,0.77425,4152.6,4152.4,0.85268426]
[1760336384099,0.4786,4152.5,4152.4,0.85268426]
[1760336384402,3.61420297,4152.5,4152.4,0.85268426]
[1760336385394,0.3158,4152.3,4152.2,0.85268426]
[1760336385595,3.2078,4152.3,4152.1,0.85268426]
[1760336385801,0.3158,4152.2,4152.1,0.85268426]
[1760336385995,0.4332,4152.2,4152.0,0.85268426]
[1760336386201,0.3158,4152.1,4152.0,0.85268426]
[1760336386403,0.56842,4152.0,4151.8,0.85268426]
[1760336386604,0.3359,4151.9,4151.8,0.85268426]
[1760336389806,0.3359,4151.9,4151.8,1.28592426]
[1760336391601,0.3359,4151.9,4151.8,0.85268426]
[1760336392004,0.7751,4151.9,4151.8,0.85268426]
[1760336392407,0.4392,4151.9,4151.7,1.28593426]
[1760336392606,0.7751,4151.8,4151.7,1.28593426]
[1760336393507,0.7751,4151.8,4151.7,0.85268426]
[1760336393707,0.4392,4151.1,4150.2,1.2785549]
[1760336393905,0.3359,4150.3,4150.2,1.2785549]
[1760336394510,0.3359,4149.9,4149.8,3.2078]
[1760336394712,0.33868709,4149.9,4149.8,3.20982236]
[1760336396204,0.33868709,4149.9,4149.8,0.00202236]
[1760336396605,0.33868709,4149.9,4149.3,3.6413]
[1760336396606,3.46859527,4149.9,4149.3,3.6413]
[1760336396807,0.3359,4149.4,4149.3,3.6413]
[1760336397512,0.4711,4149.0,4148.9,0.43354]
[1760336397714,0.4711,4149.0,4148.9,0.43665444]
[1760336400914,0.1352,4149.5,4149.4,0.43349]
[1760336401104,0.4711,4149.5,4149.4,0.43349]
[1760336401917,0.4711,4149.5,4148.9,0.43665444]
[1760336401918,0.4711,4149.0,4148.9,0.43665444]
[1760336402117,0.4711,4149.0,4148.9,0.00311444]
[1760336405513,3.6789,4149.0,4148.9,0.00311444]
[1760336406316,0.4711,4149.0,4148.9,0.00311444]
[1760336409520,0.3359,4148.4,4148.2,3.2078]
[1760336409816,0.4336,4148.4,4148.2,3.2078]
[1760336410024,0.3359,4148.3,4148.2,3.2078]
[1760336410216,0.1352,4147.5,4147.1,1.08432]
[1760336410416,0.1352,4147.5,4147.4,0.4337]
[1760336410918,0.4711,4147.5,4147.4,0.4337]
[1760336412716,0.3359,4147.4,4147.1,0.00239097]
[1760336413127,0.3359,4147.4,4147.3,0.4337]
[1760336415318,0.1352,4147.5,4147.2,0.43371]
[1760336415517,0.3359,4147.4,4147.2,0.43371]
[1760336415725,0.1352,4147.5,4147.2,0.43371]
[1760336416124,0.3359,4147.4,4147.3,0.4337]
[1760336416617,0.3351,4147.2,4147.1,0.00239097]
[1760336416819,3.5429,4147.2,4147.1,0.00239097]
[1760336419325,3.9711,4147.2,4147.1,0.00239097]
[1760336420329,0.7633,4146.6,4146.3,0.43381]
[1760336420522,0.7633,4146.4,4146.3,0.43381]
[1760336421225,0.76562935,4146.4,4146.3,0.43664178]
[1760336422324,0.33742935,4146.4,4146.3,0.43664178]
[1760336422627,9.35e-06,4146.4,4146.3,0.71304178]
[1760336422829,0.1352,4147.5,4147.1,0.43373]
[1760336423832,0.91986561,4147.3,4147.1,0.43373]
[1760336424526,0.91986561,4147.3,4146.8,3.2078]
[1760336424724,0.3351,4146.5,4146.4,0.4338]
[1760336425031,0.55914,4147.0,4146.7,0.43377]
[1760336425334,0.55914,4147.0,4146.4,0.2764]
[1760336425335,0.4605,4146.5,4146.4,0.4338]
[1760336428228,0.4605,4146.5,4146.3,0.00283178]
[1760336428435,0.3351,4146.4,4146.3,0.43664178]
[1760336431633,0.3351,4146.4,4146.3,0.00283178]
[1760336432836,1.3556,4146.4,4146.3,0.00283178]
[1760336434337,1.7838,4146.4,4146.3,0.00283178]
[1760336434732,1.7838,4146.4,4146.3,0.22943178]
[1760336435938,1.3556,4146.4,4146.3,0.73303178]
[1760336436638,2.3397,4146.4,4146.3,0.73303178]
[1760336437630,0.33696561,4147.3,4147.2,0.43372]
[1760336438943,0.33696561,4147.3,4147.2,1.71601974]
[1760336439445,0.33696561,4147.3,4147.2,0.43372]
[1760336439943,0.3351,4148.1,4148.0,0.43364]
[1760336440142,0.1254,4148.5,4148.4,0.43359]
[1760336440950,0.46265125,4148.5,4148.4,0.43359]
[1760336445144,0.67515125,4148.5,4148.4,0.43359]
[1760336445645,0.3344,4149.5,4149.4,0.1314]
[1760336445844,0.1254,4149.5,4149.4,0.43349]
[1760336446647,0.12769507,4149.5,4149.4,0.43604297]
[1760336446942,3.33549507,4149.5,4149.4,0.00255297]
[1760336447346,0.12769507,4149.5,4149.4,0.00255297]
[1760336447548,0.46129507,4149.5,4149.4,0.00255297]
[1760336449057,0.1757,4149.8,4149.7,0.77826]
[1760336449948,3.344,4150.5,4149.5,3.3083]
[1760336449949,3.344,4150.5,4150.4,0.43338]
[1760336450153,3.34702766,4150.5,4150.4,0.43338]
[1760336451149,2.22978671,4150.5,4150.4,0.77818]
[1760336451349,0.3336,4151.9,4151.8,0.43323]
[1760336452056,0.3336,4151.9,4151.2,3.2078]
[1760336452057,0.4616,4152.0,4151.9,0.43323]
[1760336452254,0.12997248,4152.0,4151.7,0.43325]
[1760336452456,0.3336,4151.9,4151.7,0.43325]
[1760336452651,0.3336,4151.9,4151.8,0.43323]
[1760336454457,0.3336,4151.9,4151.2,3.2078]
[1760336454852,0.12997248,4152.0,4151.2,3.2078]
[1760336455052,0.3336,4151.9,4151.2,3.2078]
[1760336455253,0.3336,4151.9,4151.3,0.3448]
[1760336456753,0.3336,4151.9,4151.8,0.43324]
[1760336457362,0.3336,4151.9,4151.7,0.43324]
[1760336457661,0.3336,4151.9,4151.8,0.43323]
[1760336459060,0.12997248,4152.0,4151.2,3.2078]
[1760336459270,0.56127,4151.5,4151.1,0.43331]